fUST/lending_fUST_20260118
["ID","MTS","AMOUNT","RATE_DAILY","PERIOD"]
[402646789,1768744249708,-999.593712,0.00013699,2]
[402646790,1768744249718,-999.593712,0.00013699,2]
[402646791,1768744249727,-999.593712,0.00013699,2]
[402646792,1768744249736,-999.593712,0.00013699,2]
[402646793,1768744249745,-999.593712,0.00013699,2]
[402646794,1768744249754,-999.593712,0.00013699,2]
[402646795,1768744249763,-999.593712,0.00013699,2]
[402646796,1768744249772,-999.593712,0.00013699,2]
[402646797,1768744249781,-999.593712,0.00013699,2]
[402646798,1768744249790,-999.593712,0.00013699,2]
[402646799,1768744249799,-999.593712,0.00013699,2]
[402646800,1768744249809,-999.593712,0.00013699,2]
[402646801,1768744249818,-999.593712,0.00013699,2]
[402646802,1768744249828,-999.593712,0.00013699,2]
[402646803,1768744249837,-999.593712,0.00013699,2]
[402646804,1768744249846,-999.593712,0.00013699,2]
[402646805,1768744249855,-999.593712,0.00013699,2]
[402646806,1768744249864,-999.593711,0.00013699,2]
[402646807,1768744249874,-210.796873,0.00013699,2]
[402646808,1768744249884,-210.796873,0.00013699,2]
[402646809,1768744249893,-210.796873,0.00013699,2]
[402646810,1768744249902,-210.796873,0.00013699,2]
[402646811,1768744249911,-210.796873,0.00013699,2]
[402646812,1768744249921,-210.796873,0.00013699,2]
[402646813,1768744249930,-210.796873,0.00013699,2]
[402646814,1768744249939,-210.796873,0.00013699,2]
[402646815,1768744249948,-210.796873,0.00013699,2]
[402646816,1768744249958,-210.796873,0.00013699,2]
[402646817,1768744249967,-607.30660115,0.00013699,2]
[402646818,1768744249977,-500.0,0.00013699,2]
[402646819,1768744249986,-500.0,0.00013699,2]
[402646820,1768744249995,-150.16515558,0.00013699,2]
[402646821,1768744250004,-500.0,0.00013699,2]
[402646822,1768744250013,-500.0,0.00013699,2]
[402646823,1768744250022,-500.92294409,0.00013699,2]
[402646824,1768744250032,-312.88583579,0.00013699,2]
[402646825,1768744250040,-500.0,0.00013699,2]
[402646826,1768744250049,-500.0,0.00013699,2]
[402646827,1768744250058,-500.0,0.00013699,2]
[402646828,1768744250067,-500.0,0.00013699,2]
[402646829,1768744250076,-2000.0,0.00013699,7]
[402646830,1768744250085,-400.0,0.00013699,2]
[402646831,1768744250094,-303.9776626,0.00013793,2]
[402646832,1768744250103,-642.19726215,0.00013809,2]
[402646833,1768744250113,-507.1749101,0.00013821,2]
[402646834,1768744250122,-1000.0,0.00013821,2]
[402646835,1768744250131,-504.79086485,0.00013821,2]
[402646836,1768744250141,-161.15451807,0.00013821,2]
[402646837,1768744250150,-505.21362337,0.00013821,2]
[402646838,1768744250160,-1000.0,0.00013821,2]
[402646839,1768744250169,-1000.0,0.00013821,2]
[402646840,1768744250180,-1000.0,0.00013821,2]
[402646841,1768744250189,-1003.17742599,0.00013821,2]
[402646842,1768744250199,-504.88964831,0.00013821,2]
[402646843,1768744250209,-510.18517799,0.00013821,2]
[402646844,1768744250219,-501.10173407,0.00013821,2]
[402646845,1768744250228,-8883.5236494,0.0001385,2]
[402646846,1768744250237,-305.1488827,0.00013874,2]
[402646847,1768744250247,-305.1488827,0.00013874,2]
[402646848,1768744250256,-305.1488827,0.00013874,2]
[402646849,1768744250266,-305.1488827,0.00013874,2]
[402646850,1768744250275,-305.1488827,0.00013874,2]
[402646851,1768744250284,-305.1488827,0.00013874,2]
[402646852,1768744250293,-305.1488827,0.00013874,2]
[402646853,1768744250303,-161.0,0.000139,2]
[402646854,1768744250313,-500.0,0.00013968,2]
[402646855,1768744250322,-867.15165651,0.00013989,13]
[402646856,1768744250331,-30555.42842944,0.0001399,2]
[402646857,1768744250341,-304.33423099,0.00014,30]
[402646858,1768744250350,-2000.0,0.00014014,7]
[402646859,1768744250360,-209.40437684,0.00014061,2]
[402646860,1768744250369,-2773.56790519,0.00014061,2]
[402646861,1768744250379,-574.12855637,0.00014061,2]
[402646862,1768744250388,-160.0,0.00014125,2]
[402646863,1768744250397,-1041.66666667,0.00014125,2]
[402646864,1768744250407,-2148.0,0.00014211,2]
[402646865,1768744250416,-1367.0,0.00014211,2]
[402646866,1768744250426,-629.0,0.00014211,2]
[402646867,1768744250435,-600.0,0.00014221,2]
[402646868,1768744250444,-500.0,0.00014242,2]
[402646869,1768744250454,-1000.0,0.00014247,2]
[402646870,1768744250463,-584.51251206,0.00014247,2]
[402646871,1768744250472,-391.78758007,0.00014247,2]
[402646872,1768744250481,-1000.0,0.00014247,2]
[402646873,1768744250490,-207.45361348,0.00014247,2]
[402646874,1768744250499,-1000.0,0.00014247,2]
[402646875,1768744250508,-1000.0,0.00014247,2]
[402646876,1768744250517,-192.39794037,0.00014247,2]
[402646877,1768744250527,-2000.0,0.00014329,7]
[402646878,1768744250536,-1187.95123198,0.00014368,2]
[402646879,1768744250545,-1500.0,0.00014368,2]
[402646880,1768744250554,-462.59876457,0.00014368,2]
[402646881,1768744250563,-1500.0,0.00014368,2]
[402646882,1768744250572,-1152.0,0.00014429,2]
[402646883,1768744250581,-4609.0,0.00014429,2]
[402646884,1768744250590,-867.15165651,0.00014487,15]
[402646885,1768744250599,-1500.0,0.00014494,2]
[402646886,1768744250608,-1753.572191,0.00014494,2]
[402646887,1768744250618,-5000.0,0.0001451,2]
[402646888,1768744250630,-551.03860721,0.00014516,2]
[402646889,1768744250639,-3000.0,0.00014538,2]
[402646890,1768744250649,-217.15233878,0.00014609,2]
[402646891,1768744250658,-2876.18991768,0.00014609,2]
[402646892,1768744250669,-595.37131296,0.00014609,2]
[402646893,1768744250678,-2000.0,0.00014644,7]
[402646894,1768744250687,-13513.32532638,0.00014744,2]
[402646895,1768744250696,-308.15172135,0.00014768,2]
[402646896,1768744250839,-568.044267,0.00014795,2]
[402646897,1768744250849,-1500.0,0.00014795,2]
[402646898,1768744250858,-1500.0,0.00014795,2]
[402646899,1768744250867,-1500.0,0.00014795,2]
[402646900,1768744250877,-977.22759688,0.000148,2]
[402646901,1768744250886,-418.88012925,0.00014845,30]
[402646902,1768744250895,-390.9547873,0.00014845,30]
[402646903,1768744250904,-418.88012925,0.00014845,30]
[402646904,1768744250913,-372.20880767,0.00014845,30]
[402646905,1768744250922,-3875.0,0.00014888,2]
[402646906,1768744250931,-595.26177442,0.000149,2]
[402646907,1768744250940,-886.46540214,0.00014916,2]
[402646908,1768744250949,-2000.0,0.00014916,2]
[402646909,1768744250959,-2000.0,0.00014959,7]
[402646910,1768744250968,-867.15165651,0.00014986,16]
[402646911,1768744250977,-20000.0,0.00015,2]
[402646912,1768744250987,-2790.70751565,0.00015,2]
[402646913,1768744250995,-151.07649233,0.00015,2]
[402646914,1768744251005,-10000.0,0.00015057,2]
[402646915,1768744251014,-493.915259,0.00015068,2]
[402646916,1768744251023,-977.22759688,0.00015097,5]
[402646917,1768744251032,-4000.0,0.00015112,2]
[402646918,1768744251043,-10000.0,0.00015114,2]
[402646919,1768744251052,-10000.0,0.00015114,2]
[402646920,1768744251061,-6972.5,0.00015114,2]
[402646921,1768744251071,-225.18697532,0.00015157,2]
[402646922,1768744251080,-2982.60894464,0.00015157,2]
[402646923,1768744251090,-617.40005154,0.00015157,2]
[402646924,1768744251099,-729.0,0.00015179,2]
[402646925,1768744251108,-835.11265005,0.000152,2]
[402646926,1768744251118,-2000.0,0.00015274,7]
[402646927,1768744251128,-1505.31135578,0.00015342,2]
[402646928,1768744251137,-2000.0,0.00015342,2]
[402646929,1768744251147,-504.4621291,0.00015342,2]
[402646930,1768744251156,-168.43,0.00015385,2]
[402646931,1768744251166,-977.22759688,0.00015394,9]
[402646932,1768744251176,-1291.0,0.000154,2]
[402646933,1768744251185,-500.0,0.000154,2]
[402646934,1768744251195,-500.0,0.000154,10]
[402646935,1768744251204,-500.0,0.000154,10]
[402646936,1768744251214,-500.0,0.000154,2]
[402646937,1768744251224,-241.67,0.000154,7]
[402646938,1768744251233,-654.89431956,0.000154,2]
[402646939,1768744251243,-213.53874678,0.000154,2]
[402646940,1768744251253,-164.56938161,0.000154,2]
[402646941,1768744251263,-172.32403939,0.000154,2]
[402646942,1768744251272,-209.18999324,0.000154,2]
[402646943,1768744251282,-278.37088334,0.000154,2]
[402646944,1768744251291,-174.504928,0.000154,2]
[402646945,1768744251301,-218.2981065,0.000154,2]
[402646946,1768744251310,-186.12753532,0.000154,2]
[402646947,1768744251319,-154.17015447,0.000154,2]
[402646948,1768744251328,-174.50492802,0.000154,2]
[402646949,1768744251340,-239.60081701,0.000154,2]
[402646950,1768744251350,-194.46611918,0.000154,2]
[402646951,1768744251361,-302.46,0.000154,7]
[402646952,1768744251370,-538.58539324,0.000154,2]
[402646953,1768744251379,-3875.0,0.00015432,2]
[402646954,1768744251388,-2500.0,0.00015464,2]
[402646955,1768744251398,-835.11265005,0.00015483,5]
[402646956,1768744251407,-867.15165651,0.00015484,17]
[402646957,1768744251417,-2000.0,0.00015589,7]
[402646958,1768744251427,-1958.0,0.00015651,2]
[402646959,1768744251436,-168.43,0.00015657,2]
[402646960,1768744251447,-977.22759688,0.00015692,13]
[402646961,1768744251457,-233.51889341,0.00015705,2]
[402646962,1768744251467,-3092.96547559,0.00015705,2]
[402646963,1768744251477,-640.24385345,0.00015705,2]
[402646964,1768744251486,-200.0,0.00015748,2]
[402646965,1768744251495,-160.0,0.00015748,2]
[402646966,1768744251507,-200.0,0.00015748,2]
[402646967,1768744251517,-200.31704295,0.00015748,2]
[402646968,1768744251527,-163.75500733,0.00015748,2]
[402646969,1768744251536,-500.0,0.00015749,30]
[402646970,1768744251545,-500.0,0.00015749,30]
[402646971,1768744251554,-500.0,0.00015749,30]
[402646972,1768744251563,-500.0,0.00015749,30]
[402646973,1768744251572,-500.0,0.00015749,30]
[402646974,1768744251581,-500.0,0.00015749,30]
[402646975,1768744251591,-209.37221785,0.00015749,30]
[402646976,1768744251600,-500.0,0.00015749,30]
[402646977,1768744251609,-500.0,0.00015749,30]
[402646978,1768744251619,-500.0,0.00015749,30]
[402646979,1768744251630,-500.0,0.00015749,30]
[402646980,1768744251641,-500.0,0.00015749,30]
[402646981,1768744251650,-500.0,0.00015749,30]
[402646982,1768744251659,-500.0,0.00015749,30]
[402646983,1768744251667,-500.0,0.00015749,30]
[402646984,1768744251678,-178.28333811,0.00015749,30]
[402646985,1768744251690,-500.0,0.00015749,30]
[402646986,1768744251700,-500.0,0.00015749,30]
[402646987,1768744251710,-500.0,0.00015749,30]
[402646988,1768744251719,-500.0,0.00015749,30]
[402646989,1768744251728,-500.0,0.00015749,30]
[402646990,1768744251738,-500.0,0.00015749,30]
[402646991,1768744251747,-500.0,0.00015749,30]
[402646992,1768744251756,-500.0,0.00015749,30]
[402646993,1768744251765,-500.0,0.00015749,30]
[402646994,1768744251775,-500.0,0.00015749,30]
[402646995,1768744251784,-500.0,0.00015749,30]
[402646996,1768744251793,-500.0,0.00015749,30]
[402646997,1768744251802,-500.0,0.00015749,30]
[402646998,1768744251811,-500.0,0.00015749,30]
[402646999,1768744251819,-912.96304186,0.00015749,30]
[402647000,1768744251830,-635.60351688,0.00015749,30]
[402647001,1768744251839,-500.0,0.00015749,30]
[402647002,1768744251848,-500.0,0.00015749,30]
[402647003,1768744251857,-518.2747907,0.00015749,30]
[402647004,1768744251867,-500.0,0.00015749,30]
[402647005,1768744251877,-500.0,0.00015749,30]
[402647006,1768744251886,-500.0,0.00015749,30]
[402647007,1768744251895,-500.0,0.00015749,30]
[402647008,1768744251905,-500.0,0.00015749,30]
[402647009,1768744251915,-500.0,0.00015749,30]
[402647010,1768744251924,-500.0,0.00015749,30]
[402647011,1768744251934,-500.0,0.00015749,30]
[402647012,1768744251943,-500.0,0.00015749,30]
[402647013,1768744251952,-500.0,0.00015749,30]
[402647014,1768744251962,-500.0,0.00015749,30]
[402647015,1768744251971,-500.0,0.00015749,30]
[402647016,1768744251980,-500.0,0.00015749,30]
[402647017,1768744251989,-500.0,0.00015749,30]
[402647018,1768744252000,-500.0,0.00015749,30]
[402647019,1768744252009,-500.0,0.00015749,30]
[402647020,1768744252018,-500.0,0.00015749,30]
[402647021,1768744252027,-500.0,0.00015749,30]
[402647022,1768744252038,-500.0,0.00015749,30]
[402647023,1768744252047,-500.0,0.00015749,30]
[402647024,1768744252057,-500.0,0.00015749,30]
[402647025,1768744252067,-500.0,0.00015749,30]
[402647026,1768744252076,-500.0,0.00015749,30]
[402647027,1768744252085,-500.0,0.00015749,30]
[402647028,1768744252094,-500.0,0.00015749,30]
[402647029,1768744252104,-800.0,0.00015749,30]
[402647030,1768744252114,-500.0,0.00015749,30]
[402647031,1768744252123,-800.0,0.00015749,30]
[402647032,1768744252133,-500.0,0.00015749,30]
[402647033,1768744252141,-800.0,0.00015749,30]
[402647034,1768744252150,-800.0,0.00015749,30]
[402647035,1768744252160,-800.0,0.00015749,30]
[402647036,1768744252169,-800.0,0.00015749,30]
[402647037,1768744252179,-800.0,0.00015749,30]
[402647038,1768744252189,-800.0,0.00015749,30]
[402647039,1768744252198,-800.0,0.00015749,30]
[402647040,1768744252208,-800.0,0.00015749,30]
[402647041,1768744252218,-800.0,0.00015749,30]
[402647042,1768744252227,-800.0,0.00015749,30]
[402647043,1768744252237,-800.0,0.00015749,30]
[402647044,1768744252247,-800.0,0.00015749,30]
[402647045,1768744252256,-500.0,0.00015749,30]
[402647046,1768744252267,-500.0,0.00015749,30]
[402647047,1768744252276,-500.0,0.00015749,30]
[402647048,1768744252286,-500.0,0.00015749,30]
[402647049,1768744252296,-500.0,0.00015749,30]
[402647050,1768744252305,-500.0,0.00015749,30]
[402647051,1768744252314,-500.0,0.00015749,30]
[402647052,1768744252323,-500.0,0.00015749,30]
[402647053,1768744252332,-500.0,0.00015749,30]
[402647054,1768744252342,-500.0,0.00015749,30]
[402647055,1768744252351,-500.0,0.00015749,30]
[402647056,1768744252360,-500.0,0.00015749,30]
[402647057,1768744252370,-500.0,0.00015749,30]
[402647058,1768744252379,-500.0,0.00015749,30]
[402647059,1768744252388,-500.0,0.00015749,30]
[402647060,1768744252397,-500.0,0.00015749,30]
[402647061,1768744252407,-500.0,0.00015749,30]
[402647062,1768744252416,-500.0,0.00015749,30]
[402647063,1768744252426,-500.0,0.00015749,30]
[402647064,1768744252436,-500.4887792,0.00015749,30]
[402647065,1768744252445,-500.0,0.00015749,30]
[402647066,1768744252454,-500.0,0.00015749,30]
[402647067,1768744252463,-500.0,0.00015749,30]
[402647068,1768744252472,-500.0,0.00015749,30]
[402647069,1768744252482,-835.11265005,0.00015767,9]
[402647070,1768744252491,-727.19395861,0.00015809,2]
[402647071,1768744252501,-3875.0,0.00015819,2]
[402647072,1768744252511,-1613.0,0.00015872,2]
[402647073,1768744252520,-1628.0,0.00015872,2]
[402647074,1768744252529,-2500.0,0.0001589,2]
[402647075,1768744252539,-500.0,0.000159,2]
[402647076,1768744252548,-2000.0,0.00015904,7]
[402647077,1768744252558,-3000.0,0.00015908,2]
[402647078,1768744252567,-180.05041412,0.00015972,2]
[402647079,1768744252577,-654.89431956,0.00015973,9]
[402647080,1768744252586,-209.18999324,0.00015973,9]
[402647081,1768744252595,-740.0,0.0001598,2]
[402647082,1768744252605,-867.15165651,0.00015982,19]
[402647083,1768744252615,-977.22759688,0.00015989,16]
[402647084,1768744252628,-4000.0,0.00015989,2]
[402647085,1768744252638,-729.0,0.00015989,2]
[402647086,1768744252647,-729.0,0.00015989,2]
[402647087,1768744252655,-501.0,0.00016,2]
[402647088,1768744252664,-13235.85781874,0.00016,2]
[402647089,1768744252676,-202.0,0.00016,2]
[402647090,1768744252693,-500.0,0.00016,2]
[402647091,1768744252703,-3000.0,0.00016,2]
[402647092,1768744252712,-3000.0,0.0001601,2]
[402647093,1768744252722,-3000.0,0.00016012,2]
[402647094,1768744252731,-3000.0,0.0001602,2]
[402647095,1768744252740,-3000.0,0.0001603,2]
[402647096,1768744252755,-3000.0,0.0001604,2]
[402647097,1768744252775,-3000.0,0.0001605,2]
[402647098,1768744252795,-835.11265005,0.0001605,13]
[402647099,1768744252816,-3000.0,0.0001606,2]
[402647100,1768744252838,-3000.0,0.0001607,2]
[402647101,1768744252850,-729.0,0.00016071,2]
[402647102,1768744252860,-729.0,0.00016072,2]
[402647103,1768744252871,-3000.0,0.0001608,2]
[402647104,1768744252880,-3000.0,0.0001609,2]
[402647105,1768744252889,-3000.0,0.000161,2]
[402647106,1768744252899,-3000.0,0.0001611,2]
[402647107,1768744252908,-3000.0,0.0001612,2]
[402647108,1768744252920,-3000.0,0.0001613,2]
[402647109,1768744252930,-3875.0,0.00016139,2]
[402647110,1768744252941,-3000.0,0.0001614,2]
[402647111,1768744252952,-3000.0,0.0001615,2]
[402647112,1768744252961,-3000.0,0.0001616,2]
[402647113,1768744252971,-373.61,0.0001617,30]
[402647114,1768744252980,-3000.0,0.0001617,2]
[402647115,1768744252990,-3000.0,0.0001618,2]
[402647116,1768744252999,-3000.0,0.0001619,2]
[402647117,1768744253009,-3000.0,0.000162,2]
[402647118,1768744253019,-729.0,0.00016208,2]
[402647119,1768744253028,-3000.0,0.0001621,2]
[402647120,1768744253038,-2000.0,0.00016219,7]
[402647121,1768744253047,-3000.0,0.0001622,2]
[402647122,1768744253056,-729.0,0.00016221,2]
[402647123,1768744253066,-3000.0,0.0001623,2]
[402647124,1768744253075,-1083.68083093,0.00016234,2]
[402647125,1768744253084,-3000.0,0.0001624,2]
[402647126,1768744253094,-3000.0,0.0001625,2]
[402647127,1768744253104,-191.36720395,0.00016253,2]
[402647128,1768744253114,-3207.40519818,0.00016253,2]
[402647129,1768744253124,-663.93287602,0.00016253,2]
[402647130,1768744253133,-3000.0,0.0001626,2]
[402647131,1768744253144,-3000.0,0.0001627,2]
[402647132,1768744253153,-3000.0,0.0001628,2]
[402647133,1768744253163,-977.22759688,0.00016286,20]
[402647134,1768744253172,-3000.0,0.0001629,2]
[402647135,1768744253183,-729.0,0.00016291,2]
[402647136,1768744253326,-3000.0,0.000163,2]
[402647137,1768744253335,-729.0,0.000163,2]
[402647138,1768744253345,-729.0,0.00016306,2]
[402647139,1768744253354,-3000.0,0.0001631,2]
[402647140,1768744253363,-3000.0,0.0001632,2]
[402647141,1768744253372,-200.0,0.00016325,2]
[402647142,1768744253382,-160.35079801,0.00016325,2]
[402647143,1768744253392,-204.50561505,0.00016325,2]
[402647144,1768744253401,-234240.21711216,0.00016326,2]
[402647145,1768744253411,-4314.08446144,0.00016326,2]
[402647146,1768744253420,-3000.0,0.0001633,2]
[402647147,1768744253429,-835.11265005,0.00016334,16]
[402647148,1768744253439,-3000.0,0.0001634,2]
[402647149,1768744253449,-3000.0,0.0001635,2]
[402647150,1768744253459,-3000.0,0.0001636,2]
[402647151,1768744253469,-2684736.00054025,0.00016366,2]
[402647152,1768744253479,-3000.0,0.0001637,2]
[402647153,1768744253488,-3000.0,0.0001638,2]
[402647154,1768744253498,-3000.0,0.0001639,2]
[402647155,1768744253507,-82852.63053224,0.000164,2]
[402647156,1768744253516,-3000.0,0.000164,2]
[402647157,1768744253525,-3000.0,0.0001641,2]
[402647158,1768744253535,-3000.0,0.0001642,2]
[402647159,1768744253544,-3000.0,0.0001643,2]
[402647160,1768744253554,-200.0,0.00016437,2]
[402647161,1768744253563,-683.6,0.00016438,2]
[402647162,1768744253572,-3679.0,0.00016438,5]
[402647163,1768744253581,-226.321219,0.00016438,2]
[402647164,1768744253590,-226.321219,0.00016438,2]
[402647165,1768744253600,-226.321219,0.00016438,2]
[402647166,1768744253609,-226.321219,0.00016438,2]
[402647167,1768744253619,-226.321219,0.00016438,2]
[402647168,1768744253631,-226.321219,0.00016438,2]
[402647169,1768744253640,-226.321219,0.00016438,2]
[402647170,1768744253650,-226.321219,0.00016438,2]
[402647171,1768744253660,-226.321219,0.00016438,2]
[402647172,1768744253674,-226.321219,0.00016438,2]
[402647173,1768744253689,-226.321219,0.00016438,2]
[402647174,1768744253708,-226.321219,0.00016438,2]
[402647175,1768744253717,-226.321219,0.00016438,2]
[402647176,1768744253727,-226.321219,0.00016438,2]
[402647177,1768744253736,-226.321219,0.00016438,2]
[402647178,1768744253745,-226.321219,0.00016438,2]
[402647179,1768744253755,-226.321219,0.00016438,2]
[402647180,1768744253764,-226.321219,0.00016438,2]
[402647181,1768744253773,-226.321219,0.00016438,2]
[402647182,1768744253782,-226.32121235,0.00016438,2]
[402647183,1768744253791,-151.0,0.00016438,2]
[402647184,1768744253800,-151.0,0.00016438,2]
[402647185,1768744253809,-151.0,0.00016438,2]
[402647186,1768744253819,-151.0,0.00016438,2]
[402647187,1768744253829,-151.0,0.00016438,2]
[402647188,1768744253839,-151.0,0.00016438,2]
[402647189,1768744253848,-151.878082,0.00016438,2]
[402647190,1768744253857,-151.0,0.00016438,2]
[402647191,1768744253867,-231.136394,0.00016438,2]
[402647192,1768744253876,-169.770928,0.00016438,2]
[402647193,1768744253886,-169.770928,0.00016438,2]
[402647194,1768744253896,-169.770928,0.00016438,2]
[402647195,1768744253906,-169.770928,0.00016438,2]
[402647196,1768744253916,-169.770928,0.00016438,2]
[402647197,1768744253927,-169.770928,0.00016438,2]
[402647198,1768744253937,-169.770928,0.00016438,2]
[402647199,1768744253947,-169.770928,0.00016438,2]
[402647200,1768744253958,-169.770928,0.00016438,2]
[402647201,1768744253968,-169.770928,0.00016438,2]
[402647202,1768744253978,-169.770928,0.00016438,2]
[402647203,1768744253988,-169.770928,0.00016438,2]
[402647204,1768744253998,-169.770928,0.00016438,2]
[402647205,1768744254009,-169.770928,0.00016438,2]
[402647206,1768744254019,-169.770928,0.00016438,2]
[402647207,1768744254029,-169.770928,0.00016438,2]
[402647208,1768744254040,-169.770928,0.00016438,2]
[402647209,1768744254050,-169.770928,0.00016438,2]
[402647210,1768744254059,-169.770928,0.00016438,2]
[402647211,1768744254069,-169.770933,0.00016438,2]
[402647212,1768744254079,-151.0,0.00016438,2]
[402647213,1768744254089,-151.0,0.00016438,2]
[402647214,1768744254099,-151.0,0.00016438,2]
[402647215,1768744254108,-151.0,0.00016438,2]
[402647216,1768744254118,-151.0,0.00016438,2]
[402647217,1768744254128,-151.0,0.00016438,2]
[402647218,1768744254138,-151.0,0.00016438,2]
[402647219,1768744254148,-151.0,0.00016438,2]
[402647220,1768744254157,-204.920782,0.00016438,2]
[402647221,1768744254165,-151.0,0.00016438,2]
[402647222,1768744254175,-151.0,0.00016438,2]
[402647223,1768744254185,-167.438622,0.00016438,2]
[402647224,1768744254195,-151.0,0.00016438,2]
[402647225,1768744254205,-151.0,0.00016438,2]
[402647226,1768744254216,-151.0,0.00016438,2]
[402647227,1768744254226,-151.0,0.00016438,2]
[402647228,1768744254236,-151.0,0.00016438,2]
[402647229,1768744254247,-151.0,0.00016438,2]
[402647230,1768744254257,-151.0,0.00016438,2]
[402647231,1768744254268,-151.0,0.00016438,2]
[402647232,1768744254278,-151.0,0.00016438,2]
[402647233,1768744254288,-151.0,0.00016438,2]
[402647234,1768744254298,-151.0,0.00016438,2]
[402647235,1768744254307,-151.0,0.00016438,2]
[402647236,1768744254317,-151.0,0.00016438,2]
[402647237,1768744254327,-151.0,0.00016438,2]
[402647238,1768744254336,-202.098811,0.00016438,2]
[402647239,1768744254345,-163.522097,0.00016438,2]
[402647240,1768744254355,-151.0,0.00016438,2]
[402647241,1768744254364,-249.592181,0.00016438,2]
[402647242,1768744254374,-151.0,0.00016438,2]
[402647243,1768744254383,-249.592181,0.00016438,2]
[402647244,1768744254393,-151.0,0.00016438,2]
[402647245,1768744254403,-249.592181,0.00016438,2]
[402647246,1768744254418,-151.0,0.00016438,2]
[402647247,1768744254437,-249.592181,0.00016438,2]
[402647248,1768744254451,-151.0,0.00016438,2]
[402647249,1768744254466,-249.592181,0.00016438,2]
[402647250,1768744254482,-208.358816,0.00016438,2]
[402647251,1768744254498,-249.592181,0.00016438,2]
[402647252,1768744254515,-249.592181,0.00016438,2]
[402647253,1768744254531,-249.592181,0.00016438,2]
[402647254,1768744254545,-249.592181,0.00016438,2]
[402647255,1768744254559,-249.592181,0.00016438,2]
[402647256,1768744254575,-249.592181,0.00016438,2]
[402647257,1768744254589,-249.592181,0.00016438,2]
[402647258,1768744254602,-249.592181,0.00016438,2]
[402647259,1768744254616,-249.592181,0.00016438,2]
[402647260,1768744254636,-249.592181,0.00016438,2]
[402647261,1768744254655,-249.592181,0.00016438,2]
[402647262,1768744254672,-249.592181,0.00016438,2]
[402647263,1768744254686,-249.592181,0.00016438,2]
[402647264,1768744254698,-249.592181,0.00016438,2]
[402647265,1768744254712,-249.592177,0.00016438,2]
[402647266,1768744254731,-151.0,0.00016438,2]
[402647267,1768744254743,-151.0,0.00016438,2]
[402647268,1768744254758,-151.0,0.00016438,2]
[402647269,1768744254773,-151.0,0.00016438,2]
[402647270,1768744254785,-151.0,0.00016438,2]
[402647271,1768744254798,-151.0,0.00016438,2]
[402647272,1768744254811,-272.8348,0.00016438,2]
[402647273,1768744254824,-269.00622,0.00016438,2]
[402647274,1768744254838,-269.00622,0.00016438,2]
[402647275,1768744254851,-269.00622,0.00016438,2]
[402647276,1768744254864,-269.00622,0.00016438,2]
[402647277,1768744254877,-269.00622,0.00016438,2]
[402647278,1768744254889,-269.00622,0.00016438,2]
[402647279,1768744254902,-269.00622,0.00016438,2]
[402647280,1768744254915,-269.00622,0.00016438,2]
[402647281,1768744254927,-269.00622,0.00016438,2]
[402647282,1768744254939,-269.00622,0.00016438,2]
[402647283,1768744254952,-269.00622,0.00016438,2]
[402647284,1768744254965,-269.00622,0.00016438,2]
[402647286,1768744254978,-269.00622,0.00016438,2]
[402647287,1768744254991,-269.00622,0.00016438,2]
[402647288,1768744255003,-269.00622,0.00016438,2]
[402647289,1768744255016,-269.00622,0.00016438,2]